fUST/lending_fUST_20250716
["ID","MTS","AMOUNT","RATE_DAILY","PERIOD"]
[372517565,1752669049757,-1795.49770999,0.000199,2]
[372517567,1752669049767,-179.91004498,0.00019952,2]
[372517569,1752669049777,-2117.97886088,0.00019968,2]
[372517571,1752669049786,-1680.0,0.00019974,2]
[372517573,1752669049796,-1000.0,0.0001998,2]
[372517575,1752669049806,-460.0,0.0002,2]
[372517577,1752669049815,-460.0,0.0002,2]
[372517579,1752669049824,-460.0,0.0002,2]
[372517581,1752669049834,-460.0,0.0002,2]
[372517583,1752669049843,-460.0,0.0002,2]
[372517585,1752669049853,-460.0,0.0002,2]
[372517587,1752669049862,-460.0,0.0002,2]
[372517588,1752669049872,-460.0,0.0002,2]
[372517590,1752669049882,-460.0,0.0002,2]
[372517592,1752669049891,-460.0,0.0002,2]
[372517593,1752669049900,-240.0,0.0002,2]
[372517594,1752669049910,-460.0,0.0002,2]
[372517595,1752669049919,-460.0,0.0002,2]
[372517596,1752669049929,-460.0,0.0002,2]
[372517597,1752669049939,-460.0,0.0002,2]
[372517598,1752669049949,-460.0,0.0002,2]
[372517599,1752669049958,-460.0,0.0002,2]
[372517600,1752669049968,-460.0,0.0002,2]
[372517601,1752669049977,-460.0,0.0002,2]
[372517602,1752669049987,-460.0,0.0002,2]
[372517603,1752669049997,-427.89599013,0.0002,2]
[372517604,1752669050006,-460.0,0.0002,2]
[372517605,1752669050015,-460.0,0.0002,2]
[372517606,1752669050025,-460.0,0.0002,2]
[372517607,1752669050035,-460.0,0.0002,2]
[372517608,1752669050045,-460.0,0.0002,2]
[372517609,1752669050054,-460.0,0.0002,2]
[372517610,1752669050064,-460.0,0.0002,2]
[372517611,1752669050075,-460.0,0.0002,2]
[372517612,1752669050085,-460.0,0.0002,2]
[372517613,1752669050095,-460.0,0.0002,2]
[372517614,1752669050105,-460.0,0.0002,2]
[372517615,1752669050114,-460.0,0.0002,2]
[372517617,1752669050124,-460.0,0.0002,2]
[372517618,1752669050137,-460.0,0.0002,2]
[372517620,1752669050146,-460.0,0.0002,2]
[372517622,1752669050156,-460.0,0.0002,2]
[372517624,1752669050166,-464.52944913,0.0002,2]
[372517626,1752669050175,-460.0,0.0002,2]
[372517628,1752669050185,-465.12878954,0.0002,2]
[372517630,1752669050199,-365.270547,0.0002,2]
[372517632,1752669050209,-460.0,0.0002,2]
[372517634,1752669050218,-460.0,0.0002,2]
[372517636,1752669050228,-490.06,0.0002,2]
[372517638,1752669050239,-460.0,0.0002,2]
[372517640,1752669050248,-460.0,0.0002,2]
[372517641,1752669050257,-460.0,0.0002,2]
[372517643,1752669050267,-460.0,0.0002,2]
[372517645,1752669050277,-460.0,0.0002,2]
[372517647,1752669050288,-460.0,0.0002,2]
[372517649,1752669050298,-460.0,0.0002,2]
[372517651,1752669050307,-460.0,0.0002,2]
[372517653,1752669050320,-460.0,0.0002,2]
[372517655,1752669050330,-460.0,0.0002,2]
[372517657,1752669050339,-460.0,0.0002,2]
[372517659,1752669050349,-460.0,0.0002,2]
[372517661,1752669050358,-460.0,0.0002,2]
[372517663,1752669050367,-662.38,0.0002,2]
[372517665,1752669050376,-460.0,0.0002,2]
[372517667,1752669050387,-460.0,0.0002,2]
[372517669,1752669050396,-460.0,0.0002,2]
[372517670,1752669050406,-359.01659589,0.0002,2]
[372517672,1752669050415,-460.0,0.0002,2]
[372517674,1752669050425,-460.0,0.0002,2]
[372517676,1752669050435,-206.98328743,0.0002,2]
[372517678,1752669050445,-499.99,0.0002,2]
[372517680,1752669050454,-1034.51,0.0002,2]
[372517682,1752669050466,-460.0,0.0002,2]
[372517689,1752669050539,-460.0,0.0002,2]
[372517691,1752669050550,-460.0,0.0002,2]
[372517693,1752669050559,-1043.52,0.0002,2]
[372517695,1752669050567,-460.0,0.0002,2]
[372517697,1752669050576,-460.0,0.0002,2]
[372517699,1752669050585,-460.0,0.0002,2]
[372517701,1752669050595,-1597.15,0.0002,2]
[372517703,1752669050605,-460.0,0.0002,2]
[372517704,1752669050614,-460.0,0.0002,2]
[372517706,1752669050624,-618.35,0.0002,2]
[372517708,1752669050634,-460.0,0.0002,2]
[372517710,1752669050643,-460.0,0.0002,2]
[372517712,1752669050653,-4492.9,0.0002,2]
[372517714,1752669050662,-460.0,0.0002,2]
[372517716,1752669050672,-460.0,0.0002,2]
[372517718,1752669050682,-460.0,0.0002,2]
[372517719,1752669050692,-460.0,0.0002,2]
[372517721,1752669050702,-427.53365463,0.0002,2]
[372517723,1752669050712,-460.0,0.0002,2]
[372517725,1752669050722,-460.0,0.0002,2]
[372517727,1752669050732,-460.0,0.0002,2]
[372517729,1752669050742,-460.0,0.0002,2]
[372517731,1752669050752,-1616.21,0.0002,2]
[372517733,1752669050762,-460.0,0.0002,2]
[372517734,1752669050771,-460.0,0.0002,2]
[372517736,1752669050781,-460.0,0.0002,2]
[372517738,1752669050790,-460.0,0.0002,2]
[372517740,1752669050800,-460.0,0.0002,2]
[372517742,1752669050810,-460.0,0.0002,2]
[372517744,1752669050820,-465.45660101,0.0002,2]
[372517746,1752669050831,-460.0,0.0002,2]
[372517748,1752669050840,-460.0,0.0002,2]
[372517750,1752669050850,-460.0,0.0002,2]
[372517751,1752669050859,-2019.62,0.0002,2]
[372517753,1752669050868,-460.0,0.0002,2]
[372517755,1752669050878,-460.0,0.0002,2]
[372517757,1752669050887,-640.63,0.0002,2]
[372517759,1752669050898,-460.0,0.0002,2]
[372517761,1752669050908,-460.0,0.0002,2]
[372517763,1752669050918,-460.0,0.0002,2]
[372517765,1752669050928,-205.39591022,0.0002,2]
[372517767,1752669050939,-460.0,0.0002,2]
[372517769,1752669050950,-460.0,0.0002,2]
[372517771,1752669050959,-460.0,0.0002,2]
[372517773,1752669050969,-460.0,0.0002,2]
[372517775,1752669050980,-460.0,0.0002,2]
[372517777,1752669050988,-460.0,0.0002,2]
[372517779,1752669050999,-460.0,0.0002,2]
[372517781,1752669051008,-460.0,0.0002,2]
[372517783,1752669051017,-361.38,0.0002,2]
[372517785,1752669051026,-571.54331668,0.0002,2]
[372517786,1752669051036,-460.0,0.0002,2]
[372517789,1752669051047,-784.84,0.0002,2]
[372517791,1752669051067,-460.0,0.0002,2]
[372517794,1752669051083,-826.87,0.0002,2]
[372517797,1752669051103,-460.0,0.0002,2]
[372517800,1752669051122,-460.0,0.0002,2]
[372517803,1752669051141,-460.0,0.0002,2]
[372517805,1752669051159,-1293.99017771,0.0002,5]
[372517807,1752669051181,-2417.89,0.0002,2]
[372517810,1752669051202,-307.0,0.0002,2]
[372517812,1752669051217,-460.0,0.0002,2]
[372517815,1752669051236,-472.13,0.0002,2]
[372517818,1752669051254,-460.0,0.0002,2]
[372517820,1752669051275,-460.0,0.0002,2]
[372517823,1752669051291,-460.0,0.0002,2]
[372517825,1752669051304,-460.0,0.0002,2]
[372517828,1752669051324,-460.0,0.0002,2]
[372517830,1752669051336,-460.0,0.0002,2]
[372517833,1752669051353,-460.0,0.0002,2]
[372517835,1752669051366,-460.0,0.0002,2]
[372517837,1752669051381,-464.87267364,0.0002,2]
[372517840,1752669051396,-460.0,0.0002,2]
[372517842,1752669051409,-460.0,0.0002,2]
[372517844,1752669051423,-460.0,0.0002,2]
[372517847,1752669051438,-460.0,0.0002,2]
[372517849,1752669051454,-460.0,0.0002,2]
[372517852,1752669051468,-460.0,0.0002,2]
[372517854,1752669051483,-2784.75,0.0002,2]
[372517857,1752669051497,-460.0,0.0002,2]
[372517859,1752669051512,-460.0,0.0002,2]
[372517861,1752669051525,-460.0,0.0002,2]
[372517864,1752669051539,-460.0,0.0002,2]
[372517866,1752669051553,-460.0,0.0002,2]
[372517869,1752669051567,-460.0,0.0002,2]
[372517871,1752669051581,-460.0,0.0002,2]
[372517874,1752669051597,-460.0,0.0002,2]
[372517876,1752669051612,-460.0,0.0002,2]
[372517878,1752669051625,-559.76,0.0002,2]
[372517880,1752669051639,-2937.79,0.0002,2]
[372517883,1752669051653,-460.0,0.0002,2]
[372517885,1752669051667,-1923.0,0.0002,2]
[372517888,1752669051681,-475.84164453,0.0002,2]
[372517890,1752669051696,-496.43,0.0002,2]
[372517892,1752669051711,-460.0,0.0002,2]
[372517895,1752669051726,-460.0,0.0002,2]
[372517897,1752669051740,-460.0,0.0002,2]
[372517900,1752669051753,-909.21,0.0002,2]
[372517902,1752669051767,-460.0,0.0002,2]
[372517905,1752669051782,-460.0,0.0002,2]
[372517907,1752669051796,-460.0,0.0002,2]
[372517909,1752669051805,-890.8,0.0002,2]
[372517911,1752669051814,-460.0,0.0002,2]
[372517923,1752669051929,-460.0,0.0002,2]
[372517926,1752669051948,-160.0,0.00020015,2]
[372517928,1752669051958,-931.329178,0.00020021,2]
[372517930,1752669051967,-944.43106828,0.00020021,2]
[372517932,1752669051977,-501.90551534,0.00020021,2]
[372517934,1752669051986,-503.86476806,0.00020021,2]
[372517936,1752669051996,-1000.0,0.00020021,2]
[372517938,1752669052006,-300.67506845,0.00020073,2]
[372517940,1752669052015,-1795.4977097,0.00020107,2]
[372517942,1752669052024,-10018.15424856,0.00020173,3]
[372517944,1752669052033,-12605.49131908,0.00020173,3]
[372517946,1752669052043,-160.0,0.00020173,3]
[372517948,1752669052052,-160.0,0.00020173,3]
[372517950,1752669052061,-476.07036022,0.00020173,3]
[372517952,1752669052071,-1203.55635699,0.00020268,2]
[372517953,1752669052080,-1000.0,0.00020268,2]
[372517956,1752669052090,-465.47598296,0.00020273,2]
[372517957,1752669052099,-485.75891849,0.00020273,2]
[372517959,1752669052109,-460.0,0.00020273,2]
[372517961,1752669052118,-460.0,0.00020273,2]
[372517963,1752669052128,-205.93312287,0.00020273,2]
[372517965,1752669052138,-460.0,0.00020273,2]
[372517967,1752669052147,-460.0,0.00020273,2]
[372517969,1752669052156,-434.02922962,0.00020273,2]
[372517971,1752669052166,-529.44,0.00020273,2]
[372517973,1752669052176,-460.0,0.00020273,2]
[372517975,1752669052185,-460.0,0.00020273,2]
[372517977,1752669052197,-460.0,0.00020273,2]
[372517979,1752669052208,-460.0,0.00020273,2]
[372517981,1752669052218,-460.0,0.00020273,2]
[372517984,1752669052228,-460.0,0.00020273,2]
[372517985,1752669052239,-460.0,0.00020273,2]
[372517987,1752669052248,-460.0,0.00020273,2]
[372517989,1752669052258,-362.09439152,0.00020273,2]
[372517992,1752669052269,-460.0,0.00020273,2]
[372517993,1752669052279,-460.0,0.00020273,2]
[372517995,1752669052289,-460.0,0.00020273,2]
[372517997,1752669052299,-460.34709514,0.00020273,2]
[372517999,1752669052308,-460.0,0.00020273,2]
[372518001,1752669052318,-460.0,0.00020273,2]
[372518003,1752669052328,-460.0,0.00020273,2]
[372518005,1752669052338,-460.0,0.00020273,2]
[372518007,1752669052347,-460.0,0.00020273,2]
[372518009,1752669052357,-460.0,0.00020273,2]
[372518011,1752669052367,-460.0,0.00020273,2]
[372518013,1752669052378,-488.86,0.00020273,2]
[372518015,1752669052388,-460.0,0.00020273,2]
[372518017,1752669052399,-490.06,0.00020273,2]
[372518018,1752669052408,-460.0,0.00020273,2]
[372518019,1752669052419,-460.0,0.00020273,2]
[372518020,1752669052428,-460.0,0.00020273,2]
[372518021,1752669052439,-460.0,0.00020273,2]
[372518022,1752669052449,-460.0,0.00020273,2]
[372518023,1752669052459,-222.69535022,0.00020273,2]
[372518024,1752669052470,-460.0,0.00020273,2]
[372518025,1752669052480,-460.0,0.00020273,2]
[372518026,1752669052491,-460.0,0.00020273,2]
[372518027,1752669052501,-662.38,0.00020273,2]
[372518028,1752669052511,-460.0,0.00020273,2]
[372518029,1752669052521,-460.0,0.00020273,2]
[372518030,1752669052531,-499.99,0.00020273,2]
[372518031,1752669052540,-1034.51,0.00020273,2]
[372518032,1752669052550,-460.0,0.00020273,2]
[372518033,1752669052560,-460.0,0.00020273,2]
[372518034,1752669052570,-1043.52,0.00020273,2]
[372518035,1752669052579,-460.0,0.00020273,2]
[372518036,1752669052588,-460.0,0.00020273,2]
[372518037,1752669052597,-460.0,0.00020273,2]
[372518038,1752669052607,-1597.15,0.00020273,2]
[372518039,1752669052616,-162.38,0.00020273,2]
[372518040,1752669052626,-618.35,0.00020273,2]
[372518041,1752669052635,-152.29115071,0.00020273,2]
[372518042,1752669052645,-4492.9,0.00020273,2]
[372518043,1752669052655,-460.0,0.00020273,2]
[372518044,1752669052664,-460.0,0.00020273,2]
[372518045,1752669052674,-460.0,0.00020273,2]
[372518046,1752669052683,-460.0,0.00020273,2]
[372518047,1752669052693,-460.0,0.00020273,2]
[372518048,1752669052702,-460.0,0.00020273,2]
[372518049,1752669052712,-460.0,0.00020273,2]
[372518050,1752669052721,-1616.21,0.00020273,2]
[372518051,1752669052730,-460.0,0.00020273,2]
[372518052,1752669052740,-460.0,0.00020273,2]
[372518053,1752669052749,-460.0,0.00020273,2]
[372518054,1752669052758,-460.0,0.00020273,2]
[372518055,1752669052768,-460.0,0.00020273,2]
[372518056,1752669052778,-460.0,0.00020273,2]
[372518057,1752669052788,-460.0,0.00020273,2]
[372518059,1752669052797,-460.0,0.00020273,2]
[372518060,1752669052807,-460.0,0.00020273,2]
[372518061,1752669052816,-2019.62,0.00020273,2]
[372518063,1752669052825,-460.0,0.00020273,2]
[372518065,1752669052835,-460.0,0.00020273,2]
[372518067,1752669052844,-640.63,0.00020273,2]
[372518069,1752669052853,-460.0,0.00020273,2]
[372518071,1752669052863,-460.0,0.00020273,2]
[372518073,1752669052873,-460.0,0.00020273,2]
[372518075,1752669052884,-460.0,0.00020273,2]
[372518077,1752669052893,-460.0,0.00020273,2]
[372518079,1752669052903,-460.0,0.00020273,2]
[372518081,1752669052913,-460.0,0.00020273,2]
[372518083,1752669052923,-460.0,0.00020273,2]
[372518085,1752669052933,-478.06820138,0.00020273,2]
[372518087,1752669052942,-460.0,0.00020273,2]
[372518089,1752669052953,-460.0,0.00020273,2]
[372518092,1752669052963,-311.8772773,0.00020273,2]
[372518093,1752669052972,-784.84,0.00020273,2]
[372518096,1752669052982,-826.87,0.00020273,2]
[372518097,1752669052992,-460.0,0.00020273,2]
[372518099,1752669053002,-2417.89,0.00020273,2]
[372518102,1752669053012,-460.0,0.00020273,2]
[372518104,1752669053022,-472.13,0.00020273,2]
[372518106,1752669053031,-465.14332006,0.00020273,2]
[372518107,1752669053041,-460.0,0.00020273,2]
[372518109,1752669053050,-460.0,0.00020273,2]
[372518111,1752669053060,-460.0,0.00020273,2]
[372518113,1752669053069,-460.0,0.00020273,2]
[372518115,1752669053080,-460.0,0.00020273,2]
[372518117,1752669053089,-460.0,0.00020273,2]
[372518119,1752669053098,-460.0,0.00020273,2]
[372518121,1752669053108,-460.0,0.00020273,2]
[372518123,1752669053117,-460.0,0.00020273,2]
[372518125,1752669053127,-460.0,0.00020273,2]
[372518127,1752669053137,-460.0,0.00020273,2]
[372518129,1752669053146,-460.0,0.00020273,2]
[372518131,1752669053156,-460.0,0.00020273,2]
[372518133,1752669053165,-2784.75,0.00020273,2]
[372518135,1752669053174,-460.0,0.00020273,2]
[372518137,1752669053184,-460.0,0.00020273,2]
[372518139,1752669053193,-460.0,0.00020273,2]
[372518141,1752669053207,-460.0,0.00020273,2]
[372518143,1752669053217,-460.0,0.00020273,2]
[372518145,1752669053227,-274.36,0.00020273,2]
[372518147,1752669053237,-460.0,0.00020273,2]
[372518149,1752669053247,-526.98496118,0.00020273,2]
[372518151,1752669053257,-259.23235302,0.00020273,2]
[372518153,1752669053266,-559.76,0.00020273,2]
[372518155,1752669053277,-2937.79,0.00020273,2]
[372518157,1752669053287,-460.0,0.00020273,2]
[372518158,1752669053296,-1923.0,0.00020273,2]
[372518161,1752669053306,-496.43,0.00020273,2]
[372518162,1752669053315,-460.0,0.00020273,2]
[372518165,1752669053326,-460.0,0.00020273,2]
[372518166,1752669053336,-909.21,0.00020273,2]
[372518169,1752669053346,-460.0,0.00020273,2]
[372518170,1752669053357,-460.0,0.00020273,2]
[372518172,1752669053368,-460.0,0.00020273,2]
[372518174,1752669053378,-460.0,0.00020273,2]
[372518177,1752669053388,-890.8,0.00020273,2]
[372518179,1752669053399,-460.0,0.00020273,2]
[372518181,1752669053409,-460.0,0.00020273,2]
[372518183,1752669053419,-151.0,0.000203,3]
[372518185,1752669053428,-1795.4977097,0.00020314,3]
[372518187,1752669053439,-500.0,0.00020321,2]
[372518189,1752669053449,-633.66232133,0.00020321,2]
[372518191,1752669053459,-500.0,0.00020321,2]
[372518193,1752669053468,-502.09429587,0.00020321,2]
[372518194,1752669053478,-1001.56354892,0.00020321,2]
[372518196,1752669053488,-1000.0,0.0002038,2]
[372518198,1752669053497,-502.33311944,0.00020508,2]
[372518201,1752669053507,-501.58314376,0.00020508,2]
[372518203,1752669053518,-591.20367503,0.00020508,2]
[372518205,1752669053527,-1795.4977097,0.00020521,3]
[372518207,1752669053537,-2361.14,0.00020538,3]
[372518209,1752669053546,-1180.56,0.00020538,3]
[372518210,1752669053555,-590.28,0.00020538,3]
[372518212,1752669053565,-151.0,0.0002054,2]
[372518214,1752669053575,-460.0,0.00020547,2]
[372518216,1752669053584,-460.0,0.00020547,2]
[372518218,1752669053594,-460.0,0.00020547,2]
[372518220,1752669053604,-460.0,0.00020547,2]
[372518222,1752669053614,-460.0,0.00020547,2]
[372518232,1752669053700,-460.0,0.00020547,2]
[372518234,1752669053710,-460.0,0.00020547,2]
[372518236,1752669053719,-460.0,0.00020547,2]
[372518238,1752669053729,-460.0,0.00020547,2]
[372518240,1752669053739,-460.0,0.00020547,2]
[372518242,1752669053748,-460.0,0.00020547,2]
[372518244,1752669053758,-460.0,0.00020547,2]
[372518246,1752669053767,-460.0,0.00020547,2]
[372518248,1752669053777,-321.17997114,0.00020547,2]
[372518250,1752669053787,-518.21091202,0.00020547,2]
[372518252,1752669053797,-460.0,0.00020547,2]
[372518254,1752669053807,-458.72280647,0.00020547,2]
[372518256,1752669053816,-460.0,0.00020547,2]
[372518258,1752669053826,-460.0,0.00020547,2]
[372518260,1752669053835,-460.0,0.00020547,2]
[372518262,1752669053845,-460.0,0.00020547,2]
[372518264,1752669053854,-490.06,0.00020547,2]
[372518266,1752669053864,-460.0,0.00020547,2]
[372518268,1752669053873,-460.0,0.00020547,2]
[372518270,1752669053883,-460.0,0.00020547,2]
[372518272,1752669053892,-460.0,0.00020547,2]
[372518273,1752669053902,-306.01905259,0.00020547,2]
[372518275,1752669053911,-460.0,0.00020547,2]
[372518277,1752669053921,-460.0,0.00020547,2]
[372518279,1752669053931,-662.38,0.00020547,2]
[372518282,1752669053941,-552.96923944,0.00020547,2]
[372518283,1752669053952,-460.0,0.00020547,2]
[372518285,1752669053962,-499.99,0.00020547,2]
[372518287,1752669053972,-1034.51,0.00020547,2]
[372518289,1752669053981,-460.0,0.00020547,2]
[372518291,1752669053991,-460.0,0.00020547,2]
[372518293,1752669054001,-1043.52,0.00020547,2]
[372518295,1752669054010,-460.0,0.00020547,2]
[372518297,1752669054019,-460.0,0.00020547,2]
[372518299,1752669054030,-460.0,0.00020547,2]
[372518301,1752669054039,-1597.15,0.00020547,2]
[372518303,1752669054048,-618.35,0.00020547,2]
[372518305,1752669054058,-4492.9,0.00020547,2]
[372518307,1752669054068,-460.0,0.00020547,2]
[372518309,1752669054077,-460.0,0.00020547,2]
[372518311,1752669054086,-460.0,0.00020547,2]
[372518313,1752669054095,-306.9,0.00020547,2]
[372518315,1752669054105,-460.0,0.00020547,2]
[372518317,1752669054115,-440.76451204,0.00020547,2]
[372518319,1752669054124,-460.0,0.00020547,2]
[372518321,1752669054133,-1616.21,0.00020547,2]
[372518323,1752669054142,-460.0,0.00020547,2]
[372518325,1752669054152,-460.0,0.00020547,2]
[372518327,1752669054162,-153.3012174,0.00020547,2]
[372518329,1752669054171,-460.0,0.00020547,2]
[372518331,1752669054181,-460.0,0.00020547,2]
[372518333,1752669054190,-460.0,0.00020547,2]
[372518335,1752669054204,-460.0,0.00020547,2]
[372518337,1752669054215,-2019.62,0.00020547,2]
[372518339,1752669054226,-460.0,0.00020547,2]
[372518341,1752669054236,-460.0,0.00020547,2]
[372518343,1752669054246,-151.0,0.00020547,2]
[372518345,1752669054255,-640.63,0.00020547,2]
[372518347,1752669054265,-460.0,0.00020547,2]
[372518349,1752669054275,-460.0,0.00020547,2]
[372518350,1752669054285,-460.0,0.00020547,2]
[372518352,1752669054295,-460.0,0.00020547,2]
[372518354,1752669054305,-460.0,0.00020547,2]
[372518356,1752669054315,-460.0,0.00020547,2]
[372518358,1752669054324,-460.0,0.00020547,2]
[372518360,1752669054334,-460.0,0.00020547,2]
[372518362,1752669054343,-460.0,0.00020547,2]
[372518364,1752669054353,-784.84,0.00020547,2]
[372518366,1752669054363,-826.87,0.00020547,2]
[372518368,1752669054373,-460.0,0.00020547,2]
[372518370,1752669054382,-2417.89,0.00020547,2]
[372518372,1752669054391,-460.0,0.00020547,2]
[372518374,1752669054401,-472.13,0.00020547,2]
[372518376,1752669054411,-460.0,0.00020547,2]
[372518378,1752669054420,-460.0,0.00020547,2]
[372518380,1752669054429,-460.0,0.00020547,2]
[372518382,1752669054439,-460.0,0.00020547,2]
[372518384,1752669054451,-460.0,0.00020547,2]
[372518386,1752669054460,-460.0,0.00020547,2]
[372518388,1752669054471,-460.0,0.00020547,2]
[372518390,1752669054481,-460.0,0.00020547,2]
[372518392,1752669054491,-460.0,0.00020547,2]
[372518394,1752669054501,-460.0,0.00020547,2]
[372518396,1752669054511,-460.0,0.00020547,2]
[372518398,1752669054521,-2784.75,0.00020547,2]
[372518400,1752669054531,-460.0,0.00020547,2]
[372518402,1752669054540,-460.0,0.00020547,2]
[372518404,1752669054550,-460.0,0.00020547,2]
[372518406,1752669054560,-460.0,0.00020547,2]
[372518408,1752669054570,-460.0,0.00020547,2]
[372518410,1752669054579,-460.0,0.00020547,2]
[372518412,1752669054589,-199.622493,0.00020547,2]
[372518414,1752669054598,-199.622493,0.00020547,2]
[372518416,1752669054608,-151.0,0.00020547,2]
[372518418,1752669054618,-559.76,0.00020547,2]
[372518420,1752669054628,-2937.79,0.00020547,2]
[372518422,1752669054638,-460.0,0.00020547,2]
[372518424,1752669054648,-1923.0,0.00020547,2]
[372518426,1752669054658,-496.43,0.00020547,2]
[372518428,1752669054669,-460.0,0.00020547,2]
[372518431,1752669054680,-460.0,0.00020547,2]
[372518433,1752669054692,-151.0,0.00020547,2]
[372518435,1752669054709,-909.21,0.00020547,2]
[372518437,1752669054719,-460.0,0.00020547,2]
[372518439,1752669054731,-460.0,0.00020547,2]
[372518441,1752669054742,-460.0,0.00020547,2]
[372518443,1752669054754,-460.0,0.00020547,2]
[372518445,1752669054765,-890.8,0.00020547,2]
[372518447,1752669054777,-460.0,0.00020547,2]
[372518449,1752669054788,-460.0,0.00020547,2]
[372518451,1752669054807,-160.0,0.0002056,2]
[372518453,1752669054818,-8254.03921896,0.0002056,2]
[372518504,1752669055455,-460.0,0.00019178,2]
[372518506,1752669055471,-460.0,0.00019178,2]
[372518508,1752669055480,-460.0,0.00019178,2]
[372518510,1752669055490,-460.0,0.00019178,2]
[372518512,1752669055501,-460.0,0.00019452,2]
[372518514,1752669055514,-460.0,0.00019452,2]
[372518516,1752669055530,-460.0,0.00019452,2]
[372518518,1752669055540,-228.03080614,0.00019452,2]
[372518601,1752669056361,-0.00649455,0.00019452,2]
[372518603,1752669056373,-231.96269931,0.00019452,2]
[372518605,1752669056384,-467.77221299,0.00019452,2]
[372518607,1752669056394,-460.0,0.00019726,2]
[372518610,1752669056404,-592.47141717,0.00019726,2]
[372518612,1752669056414,-460.0,0.00019726,2]
[372518613,1752669056424,-460.0,0.00019726,2]
[372518615,1752669056433,-460.0,0.0002,2]
[372518617,1752669056444,-460.0,0.00020273,2]
[372518619,1752669056458,-460.0,0.00020547,2]
[372518621,1752669056468,-4351.45210012,0.0002056,2]
[372518623,1752669056478,-160.0,0.0002056,2]
[372518625,1752669056487,-476.07036022,0.0002056,2]
[372518627,1752669056496,-214.40824756,0.0002056,2]
[372518630,1752669056506,-230.8109288,0.0002056,2]
[372518632,1752669056516,-160.0,0.0002056,2]
[372518633,1752669056525,-160.0,0.0002056,2]
[372518636,1752669056535,-160.0,0.0002056,2]
[372518638,1752669056545,-160.0,0.0002056,2]
[372518640,1752669056554,-525.58295679,0.0002056,2]
[372518641,1752669056563,-838.99048831,0.0002056,2]
[372518643,1752669056573,-260.0,0.00020563,2]
[372518645,1752669056582,-526.52056024,0.00020568,2]
[372518647,1752669056591,-500.85482562,0.00020573,2]
[372518649,1752669056601,-160.0,0.00020593,2]
[372518651,1752669056610,-160.0,0.00020593,2]
[372518653,1752669056619,-160.0,0.00020593,2]
[372518655,1752669056629,-215.5496034,0.00020593,2]
[372518657,1752669056638,-151.0,0.000207,3]
[372518660,1752669056647,-1795.4977097,0.00020728,3]
[372518662,1752669056657,-6552.40895527,0.00020739,2]
[372518663,1752669056666,-460.0,0.00020821,2]